{"text_format":"2","workbook":"xlsx","n_sheets":1,"sheets":["Pool"],"not_rendered":{"charts":0,"images":2,"macros":0,"external_links":0,"defined_names":1,"comments":0,"pivot_tables":0},"unopened":[],"bounds":{"document_bytes":16777216,"sheet_cells":100000,"run_cost":"one","rows_first":2000,"rows_last":500,"rows_between":2000,"halvings":0,"cell_chars":16384,"cell_head_chars":4096},"cells_cut":0,"cells_raw":0,"read":"whole","date_system":"1900"}

{"sheet":"Pool","index":0,"n_rows":24,"n_cols":22,"rows_kept":24,"cut":false,"hidden":false,"merged":[[15,1,15,2],[15,16,15,17],[12,1,12,2],[12,16,12,17],[13,1,13,2],[13,16,13,17],[14,1,14,2],[14,16,14,17]]}
[{"$f":"IFERROR(__xludf.DUMMYFUNCTION(\"IMPORTRANGE(\"\"https://docs.google.com/spreadsheets/d/1914d9-iAGf3VqqW-fKFArLTl75HYCb-vAsgRH63wcEQ/edit?gid=700401171#gid=700401171\"\",\"\"Pool!A1:V24\"\")\"),\"\")","v":""}]
[{"$f":"IFERROR(__xludf.DUMMYFUNCTION(\"\"\"COMPUTED_VALUE\"\"\"),\"Poolliste   für  4 Kämpfer\")","v":"Poolliste   für  4 Kämpfer"}]
[{"$nulls":9},{"$f":"IFERROR(__xludf.DUMMYFUNCTION(\"\"\"COMPUTED_VALUE\"\"\"),\"Platzierung :\")","v":"Platzierung :"}]
[{"$f":"IFERROR(__xludf.DUMMYFUNCTION(\"\"\"COMPUTED_VALUE\"\"\"),\"Veranstaltung:  \")","v":"Veranstaltung:  "},null,{"$f":"IFERROR(__xludf.DUMMYFUNCTION(\"\"\"COMPUTED_VALUE\"\"\"),\"Süddeutsche EM Männer Frauen 2024\")","v":"Süddeutsche EM Männer Frauen 2024"},{"$nulls":6},{"$f":"IFERROR(__xludf.DUMMYFUNCTION(\"\"\"COMPUTED_VALUE\"\"\"),\"1.\")","v":"1."},{"$f":"IFERROR(__xludf.DUMMYFUNCTION(\"\"\"COMPUTED_VALUE\"\"\"),\"Leonhardt  Lisa\")","v":"Leonhardt  Lisa"},{"$nulls":5},{"$f":"IFERROR(__xludf.DUMMYFUNCTION(\"\"\"COMPUTED_VALUE\"\"\"),\"VfL Ulm\")","v":"VfL Ulm"}]
[{"$f":"IFERROR(__xludf.DUMMYFUNCTION(\"\"\"COMPUTED_VALUE\"\"\"),\"Sportl. Leitung:   \")","v":"Sportl. Leitung:   "},null,{"$f":"IFERROR(__xludf.DUMMYFUNCTION(\"\"\"COMPUTED_VALUE\"\"\"),\"Emil Burock\")","v":"Emil Burock"},{"$nulls":6},{"$f":"IFERROR(__xludf.DUMMYFUNCTION(\"\"\"COMPUTED_VALUE\"\"\"),\"2.\")","v":"2."},{"$f":"IFERROR(__xludf.DUMMYFUNCTION(\"\"\"COMPUTED_VALUE\"\"\"),\"Heinz Jasmin\")","v":"Heinz Jasmin"},{"$nulls":5},{"$f":"IFERROR(__xludf.DUMMYFUNCTION(\"\"\"COMPUTED_VALUE\"\"\"),\"TSV Leinfelden\")","v":"TSV Leinfelden"}]
[{"$f":"IFERROR(__xludf.DUMMYFUNCTION(\"\"\"COMPUTED_VALUE\"\"\"),\"Gewichtsklasse:    \")","v":"Gewichtsklasse:    "},null,{"$f":"IFERROR(__xludf.DUMMYFUNCTION(\"\"\"COMPUTED_VALUE\"\"\"),\"F-78KG\")","v":"F-78KG"},{"$nulls":6},{"$f":"IFERROR(__xludf.DUMMYFUNCTION(\"\"\"COMPUTED_VALUE\"\"\"),\"3.\")","v":"3."},{"$f":"IFERROR(__xludf.DUMMYFUNCTION(\"\"\"COMPUTED_VALUE\"\"\"),\"Yilmaz Mia\")","v":"Yilmaz Mia"},{"$nulls":5},{"$f":"IFERROR(__xludf.DUMMYFUNCTION(\"\"\"COMPUTED_VALUE\"\"\"),\"Judozentrum Heubach\")","v":"Judozentrum Heubach"}]
[{"$f":"IFERROR(__xludf.DUMMYFUNCTION(\"\"\"COMPUTED_VALUE\"\"\"),\"Datum :         \")","v":"Datum :         "},null,{"$f":"IFERROR(__xludf.DUMMYFUNCTION(\"\"\"COMPUTED_VALUE\"\"\"),45556.2916666666)","v":"2024-09-21T07:00:00"},{"$nulls":6},{"$f":"IFERROR(__xludf.DUMMYFUNCTION(\"\"\"COMPUTED_VALUE\"\"\"),\"3.\")","v":"3."},{"$f":"IFERROR(__xludf.DUMMYFUNCTION(\"\"\"COMPUTED_VALUE\"\"\"),\"\")","v":""},{"$nulls":5},{"$f":"IFERROR(__xludf.DUMMYFUNCTION(\"\"\"COMPUTED_VALUE\"\"\"),\"\")","v":""}]
[]
[]
[{"$nulls":16},{"$f":"IFERROR(__xludf.DUMMYFUNCTION(\"\"\"COMPUTED_VALUE\"\"\"),\"Gesamtwertung\")","v":"Gesamtwertung"}]
[{"$nulls":4},{"$f":"IFERROR(__xludf.DUMMYFUNCTION(\"\"\"COMPUTED_VALUE\"\"\"),\"Pkt.\")","v":"Pkt."},{"$f":"IFERROR(__xludf.DUMMYFUNCTION(\"\"\"COMPUTED_VALUE\"\"\"),\"Unterberwert.\")","v":"Unterberwert."},null,{"$f":"IFERROR(__xludf.DUMMYFUNCTION(\"\"\"COMPUTED_VALUE\"\"\"),\"Pkt.\")","v":"Pkt."},{"$f":"IFERROR(__xludf.DUMMYFUNCTION(\"\"\"COMPUTED_VALUE\"\"\"),\"Unterberwert.\")","v":"Unterberwert."},null,{"$f":"IFERROR(__xludf.DUMMYFUNCTION(\"\"\"COMPUTED_VALUE\"\"\"),\"Pkt.\")","v":"Pkt."},{"$f":"IFERROR(__xludf.DUMMYFUNCTION(\"\"\"COMPUTED_VALUE\"\"\"),\"Unterberwert.\")","v":"Unterberwert."},null,{"$f":"IFERROR(__xludf.DUMMYFUNCTION(\"\"\"COMPUTED_VALUE\"\"\"),\"Pkt.\")","v":"Pkt."},{"$f":"IFERROR(__xludf.DUMMYFUNCTION(\"\"\"COMPUTED_VALUE\"\"\"),\"Unterberwert.\")","v":"Unterberwert."},null,{"$f":"IFERROR(__xludf.DUMMYFUNCTION(\"\"\"COMPUTED_VALUE\"\"\"),\"Punkte\")","v":"Punkte"},null,{"$f":"IFERROR(__xludf.DUMMYFUNCTION(\"\"\"COMPUTED_VALUE\"\"\"),\"Unterbewertung\")","v":"Unterbewertung"},null,null,{"$f":"IFERROR(__xludf.DUMMYFUNCTION(\"\"\"COMPUTED_VALUE\"\"\"),\"Platz\")","v":"Platz"}]
[{"$f":"IFERROR(__xludf.DUMMYFUNCTION(\"\"\"COMPUTED_VALUE\"\"\"),\"LOS\")","v":"LOS"},{"$f":"IFERROR(__xludf.DUMMYFUNCTION(\"\"\"COMPUTED_VALUE\"\"\"),\"Name\")","v":"Name"},null,{"$f":"IFERROR(__xludf.DUMMYFUNCTION(\"\"\"COMPUTED_VALUE\"\"\"),\"Verein\")","v":"Verein"},null,{"$f":"IFERROR(__xludf.DUMMYFUNCTION(\"\"\"COMPUTED_VALUE\"\"\"),1)","v":1},null,null,{"$f":"IFERROR(__xludf.DUMMYFUNCTION(\"\"\"COMPUTED_VALUE\"\"\"),2)","v":2},null,null,{"$f":"IFERROR(__xludf.DUMMYFUNCTION(\"\"\"COMPUTED_VALUE\"\"\"),3)","v":3},null,null,{"$f":"IFERROR(__xludf.DUMMYFUNCTION(\"\"\"COMPUTED_VALUE\"\"\"),4)","v":4}]
[{"$f":"IFERROR(__xludf.DUMMYFUNCTION(\"\"\"COMPUTED_VALUE\"\"\"),1)","v":1},{"$f":"IFERROR(__xludf.DUMMYFUNCTION(\"\"\"COMPUTED_VALUE\"\"\"),\"Heinz Jasmin\")","v":"Heinz Jasmin"},null,{"$f":"IFERROR(__xludf.DUMMYFUNCTION(\"\"\"COMPUTED_VALUE\"\"\"),\"TSV Leinfelden\")","v":"TSV Leinfelden"},{"$f":"IFERROR(__xludf.DUMMYFUNCTION(\"\"\"COMPUTED_VALUE\"\"\"),\"X\")","v":"X"},{"$f":"IFERROR(__xludf.DUMMYFUNCTION(\"\"\"COMPUTED_VALUE\"\"\"),\"X\")","v":"X"},{"$f":"IFERROR(__xludf.DUMMYFUNCTION(\"\"\"COMPUTED_VALUE\"\"\"),\"X\")","v":"X"},{"$f":"IFERROR(__xludf.DUMMYFUNCTION(\"\"\"COMPUTED_VALUE\"\"\"),0)","v":0},{"$f":"IFERROR(__xludf.DUMMYFUNCTION(\"\"\"COMPUTED_VALUE\"\"\"),0)","v":0},{"$f":"IFERROR(__xludf.DUMMYFUNCTION(\"\"\"COMPUTED_VALUE\"\"\"),10)","v":10},{"$f":"IFERROR(__xludf.DUMMYFUNCTION(\"\"\"COMPUTED_VALUE\"\"\"),1)","v":1},{"$f":"IFERROR(__xludf.DUMMYFUNCTION(\"\"\"COMPUTED_VALUE\"\"\"),10)","v":10},{"$f":"IFERROR(__xludf.DUMMYFUNCTION(\"\"\"COMPUTED_VALUE\"\"\"),0)","v":0},null,null,null,{"$f":"IFERROR(__xludf.DUMMYFUNCTION(\"\"\"COMPUTED_VALUE\"\"\"),1)","v":1},null,{"$f":"IFERROR(__xludf.DUMMYFUNCTION(\"\"\"COMPUTED_VALUE\"\"\"),10)","v":10},{"$f":"IFERROR(__xludf.DUMMYFUNCTION(\"\"\"COMPUTED_VALUE\"\"\"),10)","v":10},null,{"$f":"IFERROR(__xludf.DUMMYFUNCTION(\"\"\"COMPUTED_VALUE\"\"\"),2)","v":2}]
[{"$f":"IFERROR(__xludf.DUMMYFUNCTION(\"\"\"COMPUTED_VALUE\"\"\"),2)","v":2},{"$f":"IFERROR(__xludf.DUMMYFUNCTION(\"\"\"COMPUTED_VALUE\"\"\"),\"Leonhardt  Lisa\")","v":"Leonhardt  Lisa"},null,{"$f":"IFERROR(__xludf.DUMMYFUNCTION(\"\"\"COMPUTED_VALUE\"\"\"),\"VfL Ulm\")","v":"VfL Ulm"},{"$f":"IFERROR(__xludf.DUMMYFUNCTION(\"\"\"COMPUTED_VALUE\"\"\"),1)","v":1},{"$f":"IFERROR(__xludf.DUMMYFUNCTION(\"\"\"COMPUTED_VALUE\"\"\"),10)","v":10},{"$f":"IFERROR(__xludf.DUMMYFUNCTION(\"\"\"COMPUTED_VALUE\"\"\"),0)","v":0},{"$f":"IFERROR(__xludf.DUMMYFUNCTION(\"\"\"COMPUTED_VALUE\"\"\"),\"X\")","v":"X"},{"$f":"IFERROR(__xludf.DUMMYFUNCTION(\"\"\"COMPUTED_VALUE\"\"\"),\"X\")","v":"X"},{"$f":"IFERROR(__xludf.DUMMYFUNCTION(\"\"\"COMPUTED_VALUE\"\"\"),\"X\")","v":"X"},{"$f":"IFERROR(__xludf.DUMMYFUNCTION(\"\"\"COMPUTED_VALUE\"\"\"),1)","v":1},{"$f":"IFERROR(__xludf.DUMMYFUNCTION(\"\"\"COMPUTED_VALUE\"\"\"),10)","v":10},{"$f":"IFERROR(__xludf.DUMMYFUNCTION(\"\"\"COMPUTED_VALUE\"\"\"),0)","v":0},null,null,null,{"$f":"IFERROR(__xludf.DUMMYFUNCTION(\"\"\"COMPUTED_VALUE\"\"\"),2)","v":2},null,{"$f":"IFERROR(__xludf.DUMMYFUNCTION(\"\"\"COMPUTED_VALUE\"\"\"),20)","v":20},{"$f":"IFERROR(__xludf.DUMMYFUNCTION(\"\"\"COMPUTED_VALUE\"\"\"),0)","v":0},null,{"$f":"IFERROR(__xludf.DUMMYFUNCTION(\"\"\"COMPUTED_VALUE\"\"\"),1)","v":1}]
[{"$f":"IFERROR(__xludf.DUMMYFUNCTION(\"\"\"COMPUTED_VALUE\"\"\"),3)","v":3},{"$f":"IFERROR(__xludf.DUMMYFUNCTION(\"\"\"COMPUTED_VALUE\"\"\"),\"Yilmaz Mia\")","v":"Yilmaz Mia"},null,{"$f":"IFERROR(__xludf.DUMMYFUNCTION(\"\"\"COMPUTED_VALUE\"\"\"),\"Judozentrum Heubach\")","v":"Judozentrum Heubach"},{"$f":"IFERROR(__xludf.DUMMYFUNCTION(\"\"\"COMPUTED_VALUE\"\"\"),0)","v":0},{"$f":"IFERROR(__xludf.DUMMYFUNCTION(\"\"\"COMPUTED_VALUE\"\"\"),0)","v":0},{"$f":"IFERROR(__xludf.DUMMYFUNCTION(\"\"\"COMPUTED_VALUE\"\"\"),10)","v":10},{"$f":"IFERROR(__xludf.DUMMYFUNCTION(\"\"\"COMPUTED_VALUE\"\"\"),0)","v":0},{"$f":"IFERROR(__xludf.DUMMYFUNCTION(\"\"\"COMPUTED_VALUE\"\"\"),0)","v":0},{"$f":"IFERROR(__xludf.DUMMYFUNCTION(\"\"\"COMPUTED_VALUE\"\"\"),10)","v":10},{"$f":"IFERROR(__xludf.DUMMYFUNCTION(\"\"\"COMPUTED_VALUE\"\"\"),\"X\")","v":"X"},{"$f":"IFERROR(__xludf.DUMMYFUNCTION(\"\"\"COMPUTED_VALUE\"\"\"),\"X\")","v":"X"},{"$f":"IFERROR(__xludf.DUMMYFUNCTION(\"\"\"COMPUTED_VALUE\"\"\"),\"X\")","v":"X"},null,null,null,{"$f":"IFERROR(__xludf.DUMMYFUNCTION(\"\"\"COMPUTED_VALUE\"\"\"),0)","v":0},null,{"$f":"IFERROR(__xludf.DUMMYFUNCTION(\"\"\"COMPUTED_VALUE\"\"\"),0)","v":0},{"$f":"IFERROR(__xludf.DUMMYFUNCTION(\"\"\"COMPUTED_VALUE\"\"\"),20)","v":20},null,{"$f":"IFERROR(__xludf.DUMMYFUNCTION(\"\"\"COMPUTED_VALUE\"\"\"),3)","v":3}]
[{"$f":"IFERROR(__xludf.DUMMYFUNCTION(\"\"\"COMPUTED_VALUE\"\"\"),4)","v":4},{"$f":"IFERROR(__xludf.DUMMYFUNCTION(\"\"\"COMPUTED_VALUE\"\"\"),\"---\")","v":"---"},null,{"$f":"IFERROR(__xludf.DUMMYFUNCTION(\"\"\"COMPUTED_VALUE\"\"\"),\"---\")","v":"---"},{"$nulls":9},{"$f":"IFERROR(__xludf.DUMMYFUNCTION(\"\"\"COMPUTED_VALUE\"\"\"),\"X\")","v":"X"},{"$f":"IFERROR(__xludf.DUMMYFUNCTION(\"\"\"COMPUTED_VALUE\"\"\"),\"X\")","v":"X"},{"$f":"IFERROR(__xludf.DUMMYFUNCTION(\"\"\"COMPUTED_VALUE\"\"\"),\"X\")","v":"X"},{"$f":"IFERROR(__xludf.DUMMYFUNCTION(\"\"\"COMPUTED_VALUE\"\"\"),0)","v":0},null,{"$f":"IFERROR(__xludf.DUMMYFUNCTION(\"\"\"COMPUTED_VALUE\"\"\"),0)","v":0},{"$f":"IFERROR(__xludf.DUMMYFUNCTION(\"\"\"COMPUTED_VALUE\"\"\"),0)","v":0},null,{"$f":"IFERROR(__xludf.DUMMYFUNCTION(\"\"\"COMPUTED_VALUE\"\"\"),\"\")","v":""}]
[]
[{"$f":"IFERROR(__xludf.DUMMYFUNCTION(\"\"\"COMPUTED_VALUE\"\"\"),\"Kampffolgen:\")","v":"Kampffolgen:"},{"$nulls":15},{"$f":"IFERROR(__xludf.DUMMYFUNCTION(\"\"\"COMPUTED_VALUE\"\"\"),\"  Erg.\")","v":"  Erg."},null,{"$f":"IFERROR(__xludf.DUMMYFUNCTION(\"\"\"COMPUTED_VALUE\"\"\"),\"Unterbewertung\")","v":"Unterbewertung"}]
[{"$f":"IFERROR(__xludf.DUMMYFUNCTION(\"\"\"COMPUTED_VALUE\"\"\"),\" 1 - 2\")","v":" 1 - 2"},{"$f":"IFERROR(__xludf.DUMMYFUNCTION(\"\"\"COMPUTED_VALUE\"\"\"),\"Heinz Jasmin\")","v":"Heinz Jasmin"},null,{"$f":"IFERROR(__xludf.DUMMYFUNCTION(\"\"\"COMPUTED_VALUE\"\"\"),\"TSV Leinfelden\")","v":"TSV Leinfelden"},{"$f":"IFERROR(__xludf.DUMMYFUNCTION(\"\"\"COMPUTED_VALUE\"\"\"),\"  -\")","v":"  -"},{"$f":"IFERROR(__xludf.DUMMYFUNCTION(\"\"\"COMPUTED_VALUE\"\"\"),\"Leonhardt  Lisa\")","v":"Leonhardt  Lisa"},{"$nulls":5},{"$f":"IFERROR(__xludf.DUMMYFUNCTION(\"\"\"COMPUTED_VALUE\"\"\"),\"VfL Ulm\")","v":"VfL Ulm"},{"$nulls":4},{"$f":"IFERROR(__xludf.DUMMYFUNCTION(\"\"\"COMPUTED_VALUE\"\"\"),0)","v":0},{"$f":"IFERROR(__xludf.DUMMYFUNCTION(\"\"\"COMPUTED_VALUE\"\"\"),1)","v":1},{"$f":"IFERROR(__xludf.DUMMYFUNCTION(\"\"\"COMPUTED_VALUE\"\"\"),0)","v":0},{"$f":"IFERROR(__xludf.DUMMYFUNCTION(\"\"\"COMPUTED_VALUE\"\"\"),10)","v":10}]
[{"$f":"IFERROR(__xludf.DUMMYFUNCTION(\"\"\"COMPUTED_VALUE\"\"\"),\" 3 - 4 \")","v":" 3 - 4 "},{"$f":"IFERROR(__xludf.DUMMYFUNCTION(\"\"\"COMPUTED_VALUE\"\"\"),\"Yilmaz Mia\")","v":"Yilmaz Mia"},null,{"$f":"IFERROR(__xludf.DUMMYFUNCTION(\"\"\"COMPUTED_VALUE\"\"\"),\"Judozentrum Heubach\")","v":"Judozentrum Heubach"},{"$f":"IFERROR(__xludf.DUMMYFUNCTION(\"\"\"COMPUTED_VALUE\"\"\"),\"  -\")","v":"  -"},{"$f":"IFERROR(__xludf.DUMMYFUNCTION(\"\"\"COMPUTED_VALUE\"\"\"),\"---\")","v":"---"},{"$nulls":5},{"$f":"IFERROR(__xludf.DUMMYFUNCTION(\"\"\"COMPUTED_VALUE\"\"\"),\"\")","v":""}]
[{"$f":"IFERROR(__xludf.DUMMYFUNCTION(\"\"\"COMPUTED_VALUE\"\"\"),\" 1 - 4 \")","v":" 1 - 4 "},{"$f":"IFERROR(__xludf.DUMMYFUNCTION(\"\"\"COMPUTED_VALUE\"\"\"),\"Heinz Jasmin\")","v":"Heinz Jasmin"},null,{"$f":"IFERROR(__xludf.DUMMYFUNCTION(\"\"\"COMPUTED_VALUE\"\"\"),\"TSV Leinfelden\")","v":"TSV Leinfelden"},{"$f":"IFERROR(__xludf.DUMMYFUNCTION(\"\"\"COMPUTED_VALUE\"\"\"),\"  -\")","v":"  -"},{"$f":"IFERROR(__xludf.DUMMYFUNCTION(\"\"\"COMPUTED_VALUE\"\"\"),\"---\")","v":"---"},{"$nulls":5},{"$f":"IFERROR(__xludf.DUMMYFUNCTION(\"\"\"COMPUTED_VALUE\"\"\"),\"\")","v":""}]
[{"$f":"IFERROR(__xludf.DUMMYFUNCTION(\"\"\"COMPUTED_VALUE\"\"\"),\" 2 - 3\")","v":" 2 - 3"},{"$f":"IFERROR(__xludf.DUMMYFUNCTION(\"\"\"COMPUTED_VALUE\"\"\"),\"Leonhardt  Lisa\")","v":"Leonhardt  Lisa"},null,{"$f":"IFERROR(__xludf.DUMMYFUNCTION(\"\"\"COMPUTED_VALUE\"\"\"),\"VfL Ulm\")","v":"VfL Ulm"},{"$f":"IFERROR(__xludf.DUMMYFUNCTION(\"\"\"COMPUTED_VALUE\"\"\"),\"  -\")","v":"  -"},{"$f":"IFERROR(__xludf.DUMMYFUNCTION(\"\"\"COMPUTED_VALUE\"\"\"),\"Yilmaz Mia\")","v":"Yilmaz Mia"},{"$nulls":5},{"$f":"IFERROR(__xludf.DUMMYFUNCTION(\"\"\"COMPUTED_VALUE\"\"\"),\"Judozentrum Heubach\")","v":"Judozentrum Heubach"},{"$nulls":4},{"$f":"IFERROR(__xludf.DUMMYFUNCTION(\"\"\"COMPUTED_VALUE\"\"\"),1)","v":1},{"$f":"IFERROR(__xludf.DUMMYFUNCTION(\"\"\"COMPUTED_VALUE\"\"\"),0)","v":0},{"$f":"IFERROR(__xludf.DUMMYFUNCTION(\"\"\"COMPUTED_VALUE\"\"\"),10)","v":10},{"$f":"IFERROR(__xludf.DUMMYFUNCTION(\"\"\"COMPUTED_VALUE\"\"\"),0)","v":0}]
[{"$f":"IFERROR(__xludf.DUMMYFUNCTION(\"\"\"COMPUTED_VALUE\"\"\"),\" 1 - 3\")","v":" 1 - 3"},{"$f":"IFERROR(__xludf.DUMMYFUNCTION(\"\"\"COMPUTED_VALUE\"\"\"),\"Heinz Jasmin\")","v":"Heinz Jasmin"},null,{"$f":"IFERROR(__xludf.DUMMYFUNCTION(\"\"\"COMPUTED_VALUE\"\"\"),\"TSV Leinfelden\")","v":"TSV Leinfelden"},{"$f":"IFERROR(__xludf.DUMMYFUNCTION(\"\"\"COMPUTED_VALUE\"\"\"),\"  -\")","v":"  -"},{"$f":"IFERROR(__xludf.DUMMYFUNCTION(\"\"\"COMPUTED_VALUE\"\"\"),\"Yilmaz Mia\")","v":"Yilmaz Mia"},{"$nulls":5},{"$f":"IFERROR(__xludf.DUMMYFUNCTION(\"\"\"COMPUTED_VALUE\"\"\"),\"Judozentrum Heubach\")","v":"Judozentrum Heubach"},{"$nulls":4},{"$f":"IFERROR(__xludf.DUMMYFUNCTION(\"\"\"COMPUTED_VALUE\"\"\"),1)","v":1},{"$f":"IFERROR(__xludf.DUMMYFUNCTION(\"\"\"COMPUTED_VALUE\"\"\"),0)","v":0},{"$f":"IFERROR(__xludf.DUMMYFUNCTION(\"\"\"COMPUTED_VALUE\"\"\"),10)","v":10},{"$f":"IFERROR(__xludf.DUMMYFUNCTION(\"\"\"COMPUTED_VALUE\"\"\"),0)","v":0}]
[{"$f":"IFERROR(__xludf.DUMMYFUNCTION(\"\"\"COMPUTED_VALUE\"\"\"),\" 2 - 4\")","v":" 2 - 4"},{"$f":"IFERROR(__xludf.DUMMYFUNCTION(\"\"\"COMPUTED_VALUE\"\"\"),\"Leonhardt  Lisa\")","v":"Leonhardt  Lisa"},null,{"$f":"IFERROR(__xludf.DUMMYFUNCTION(\"\"\"COMPUTED_VALUE\"\"\"),\"VfL Ulm\")","v":"VfL Ulm"},{"$f":"IFERROR(__xludf.DUMMYFUNCTION(\"\"\"COMPUTED_VALUE\"\"\"),\"  -\")","v":"  -"},{"$f":"IFERROR(__xludf.DUMMYFUNCTION(\"\"\"COMPUTED_VALUE\"\"\"),\"---\")","v":"---"},{"$nulls":5},{"$f":"IFERROR(__xludf.DUMMYFUNCTION(\"\"\"COMPUTED_VALUE\"\"\"),\"\")","v":""}]